bitfinex/quotes_ETHUSD_20251015
["timestamp","ask_amount","ask_price","bid_price","bid_amount"]
[1760570051426,2.50815281,3987.0,3986.3,2.50858261]
[1760570051631,2.50810931,3987.1,3986.4,2.50851088]
[1760570052705,0.27913677,3987.3,3986.1,0.2322]
[1760570052910,0.001,3987.4,3986.5,0.4661]
[1760570053428,0.1248,3986.6,3986.5,2.97456607]
[1760570053615,0.1248,3986.6,3986.5,3.7737423]
[1760570054344,0.1844,3986.8,3986.3,2.50858567]
[1760570054650,2.69269466,3986.8,3986.1,2.74090054]
[1760570055198,2.50834812,3986.7,3986.1,0.2322]
[1760570055434,2.50857744,3986.4,3986.0,0.002]
[1760570055605,2.50870313,3986.2,3986.0,0.002]
[1760570055932,2.50861067,3986.3,3986.0,0.002]
[1760570056299,2.75940661,3986.4,3986.0,0.002]
[1760570056936,2.50865136,3986.3,3986.0,0.002]
[1760570057536,2.50865635,3986.2,3986.0,0.002]
[1760570057830,2.50861243,3986.3,3986.0,0.002]
[1760570058038,0.25085774,3986.4,3986.0,0.002]
[1760570058039,2.50871779,3986.1,3986.0,0.002]
[1760570058426,2.88457534,3986.1,3986.0,0.002]
[1760570059138,3.51817534,3986.1,3986.0,0.002]
[1760570059329,5.24617534,3986.1,3986.0,0.002]
[1760570060736,4.61257534,3986.1,3986.0,0.002]
[1760570061038,4.23671779,3986.1,3986.0,0.002]
[1760570061441,4.97021779,3986.1,3986.0,0.002]
[1760570068253,4.23671779,3986.1,3986.0,0.002]
[1760570069569,4.33661779,3986.1,3986.0,0.002]
[1760570070554,4.87031779,3986.1,3986.0,0.002]
[1760570070736,5.70810876,3986.1,3986.0,0.002]
[1760570071242,5.60820876,3986.1,3986.0,0.002]
[1760570071835,5.70810876,3986.1,3986.0,0.002]
[1760570072338,5.60820876,3986.1,3986.0,0.002]
[1760570072861,5.70810876,3986.1,3986.0,0.002]
[1760570076964,5.60820876,3986.1,3986.0,0.002]
[1760570081774,5.70810876,3986.1,3986.0,0.002]
[1760570082810,5.70810876,3986.1,3985.6,1e-08]
[1760570082811,3.14256956,3985.7,3985.6,1e-08]
[1760570082968,14.66618753,3985.7,3985.6,1e-08]
[1760570083288,14.76688753,3985.7,3985.6,1e-08]
[1760570083476,14.66618753,3985.7,3985.6,1e-08]
[1760570084500,14.76688753,3985.7,3985.6,1e-08]
[1760570084673,14.66618753,3985.7,3985.6,1e-08]
[1760570085202,14.76688753,3985.7,3985.6,1e-08]
[1760570085564,14.66618753,3985.7,3985.6,1e-08]
[1760570087870,5.35762652,3985.7,3985.6,1e-08]
[1760570088071,4.72402652,3985.7,3985.6,0.44220001]
[1760570088291,5.35762652,3985.7,3985.6,0.44220001]
[1760570088511,1.728,3985.7,3985.6,0.44220001]
[1760570088693,2.50878784,3986.0,3985.6,0.44220001]
[1760570089016,2.50808858,3987.1,3985.6,0.44220001]
[1760570089172,0.1869,3987.2,3985.6,0.44220001]
[1760570089173,2.50892791,3985.8,3985.6,0.44220001]
[1760570089581,2.5087938,3986.0,3985.6,0.44220001]
[1760570090023,0.6336,3986.4,3985.7,0.4422]
[1760570090174,2.50896956,3985.7,3985.6,0.44220001]
[1760570090585,4.23696956,3985.7,3985.6,0.44220001]
[1760570092133,1.728,3986.0,3985.6,0.44220001]
[1760570092299,2.50888971,3985.9,3985.6,0.44220001]
[1760570092808,2.5087136,3986.2,3985.6,0.44220001]
[1760570092809,2.50879736,3986.0,3985.6,0.44220001]
[1760570093116,2.50865485,3986.2,3986.1,0.2356]
[1760570093282,2.50865485,3986.2,3986.1,0.671]
[1760570097513,2.50965485,3986.2,3986.1,0.671]
[1760570100005,2.50965485,3986.2,3985.6,1e-08]
[1760570100006,2.50896956,3985.7,3985.6,1e-08]
[1760570101214,4.87056956,3985.7,3985.6,1e-08]
[1760570103621,4.87056956,3985.7,3985.6,0.46730001]
[1760570103622,1.728,3985.7,3985.6,0.46730001]
[1760570103920,4.23696956,3985.7,3985.6,0.46730001]
[1760570104630,4.23696956,3985.7,3985.6,1e-08]
[1760570104838,4.91155152,3985.7,3985.6,0.46730001]
[1760570105137,4.23696956,3985.7,3985.6,0.46730001]
[1760570105348,4.87056956,3985.7,3985.6,1e-08]
[1760570105815,4.87056956,3985.7,3985.2,0.002]
[1760570105816,14.60738741,3985.7,3985.2,0.002]
[1760570105992,4.87082138,3985.3,3985.2,0.002]
[1760570106698,4.96982138,3985.3,3985.2,0.002]
[1760570107321,4.87082138,3985.3,3985.2,0.002]
[1760570107723,4.96982138,3985.3,3985.2,0.002]
[1760570107904,5.79330928,3985.3,3985.2,0.002]
[1760570108474,1.728,3985.3,3985.2,0.002]
[1760570108613,1.728,3985.3,3985.2,0.4693]
[1760570109328,4.23722138,3985.3,3985.2,0.4693]
[1760570110132,1.728,3985.3,3985.2,0.4693]
[1760570110617,4.23722138,3985.3,3985.2,0.4693]
[1760570111359,1.728,3985.3,3985.2,0.4693]
[1760570111558,2.50871779,3986.1,3985.2,0.4693]
[1760570111723,2.50879885,3986.0,3985.2,0.4693]
[1760570112057,1.728,3985.7,3985.2,0.4693]
[1760570112252,2.50897612,3985.7,3985.2,0.4693]
[1760570112633,1.728,3985.8,3985.2,0.32343948]
[1760570112832,0.001,3986.2,3985.3,4.37239221]
[1760570113038,2.50965485,3986.2,3986.1,0.2357]
[1760570113359,4.23765485,3986.2,3986.1,0.703]
[1760570113746,0.001,3986.2,3986.1,0.703]
[1760570118486,2.50965485,3986.2,3986.1,0.2357]
[1760570118689,2.50965485,3986.2,3985.6,3.88]
[1760570118690,2.50896411,3985.8,3985.6,3.88]
[1760570118893,2.50895152,3985.8,3985.6,3.88]
[1760570119420,2.50895152,3985.8,3985.6,4.3473]
[1760570119551,2.50885732,3985.9,3985.6,4.3473]
[1760570120589,2.50885732,3985.9,3985.6,3.88]
[1760570120812,2.50896956,3985.7,3985.6,3.88]
[1760570120955,2.50885732,3985.9,3985.2,0.002]
[1760570120956,2.50922138,3985.3,3985.2,0.002]
[1760570122295,4.97062138,3985.3,3985.2,0.002]
[1760570122660,0.001,3986.2,3985.2,0.6498]
[1760570122970,0.1248,3985.5,3985.4,2.50915842]
[1760570123291,0.1248,3985.5,3985.4,0.4311]
[1760570123490,0.1248,3985.5,3985.2,0.002]
[1760570123665,0.26338461,3985.5,3985.2,0.002]
[1760570123865,2.50910041,3985.5,3985.2,0.002]
[1760570124576,2.50904717,3985.6,3985.2,0.002]
[1760570124797,0.6336,3986.0,3985.2,0.002]
[1760570124978,3.14282138,3985.3,3985.2,0.002]
[1760570125163,3.80701767,3985.3,3985.2,0.002]
[1760570125364,3.70801767,3985.3,3985.2,0.002]
[1760570125883,3.80701767,3985.3,3985.2,0.002]
[1760570126611,5.43601767,3985.3,3985.2,0.002]
[1760570126989,5.53501767,3985.3,3985.2,0.002]
[1760570128312,4.99568435,3985.2,3985.1,1e-08]
[1760570128609,15.43791812,3985.2,3985.1,1e-08]
[1760570128779,15.53691812,3985.2,3985.1,1e-08]
[1760570129808,15.53691812,3985.2,3984.8,0.002]
[1760570129809,4.87107326,3984.9,3984.8,0.002]
[1760570130009,7.09058333,3984.9,3984.8,0.002]
[1760570130175,7.19038333,3984.9,3984.8,0.002]
[1760570130987,14.50914303,3984.5,3982.5,0.4311]
[1760570131212,0.6336,3983.8,3982.5,0.4311]
[1760570131401,1.8528,3984.4,3982.7,2.51085457]
[1760570131402,0.6336,3983.6,3982.7,2.51085457]
[1760570131710,2.5102435,3983.7,3982.8,0.4311]
[1760570132009,0.6336,3983.5,3982.8,0.4311]
[1760570132227,3.14395668,3983.5,3982.8,2.94189438]
[1760570132512,0.6336,3983.6,3982.9,0.4311]
[1760570132715,0.6336,3983.4,3982.9,0.4311]
[1760570133008,0.1248,3982.9,3982.8,2.51078827]
[1760570133385,0.1248,3982.9,3982.6,0.4311]
[1760570133606,0.1007,3983.8,3982.6,0.4311]
[1760570133607,2.51029219,3983.6,3982.6,0.4311]
[1760570133812,0.1248,3982.6,3982.4,2.5110063]
[1760570133994,2.51062938,3983.1,3982.5,0.4311]
[1760570134414,2.51055181,3983.2,3982.5,2.9420792]
[1760570134713,2.51052205,3983.3,3982.6,2.51091371]
[1760570134901,2.51044053,3983.4,3982.7,2.51085721]
[1760570135705,2.51029816,3983.6,3983.3,0.2167]
[1760570135706,2.3616,3983.6,3983.3,0.2167]
[1760570135906,0.6336,3983.6,3983.4,0.4311]
[1760570136126,0.1248,3983.4,3983.3,0.2167]
[1760570137035,0.1248,3983.4,3982.4,0.4311]
[1760570137338,2.51059974,3983.2,3982.5,2.5109723]
[1760570137542,3.24370999,3983.8,3982.3,2.51110835]
[1760570137543,0.6336,3983.6,3983.1,0.2167]
[1760570137728,1.728,3983.6,3983.2,0.4311]
[1760570138041,2.51029524,3983.6,3983.2,0.4311]
[1760570138348,1.728,3984.3,3983.3,0.4311]
[1760570138349,1.728,3983.7,3983.3,0.4311]
[1760570138641,1.728,3984.4,3983.7,2.5101729]
[1760570138642,2.50982812,3984.4,3983.7,2.5101729]
[1760570138941,0.1248,3983.3,3983.2,2.51054428]
[1760570139352,0.1248,3983.3,3983.2,2.94164428]
[1760570139649,0.1248,3983.3,3983.1,0.2167]
[1760570139811,0.1248,3983.3,3982.6,0.4311]
[1760570140011,0.1248,3983.3,3982.0,0.2167]
[1760570140012,0.1248,3982.8,3982.3,2.94220622]
[1760570140307,2.51067843,3983.0,3982.4,0.4311]
[1760570140506,2.51054873,3983.2,3982.5,2.51093437]
[1760570140708,2.51071129,3983.0,3982.5,0.4311]
[1760570140939,2.51052641,3983.3,3982.6,0.4311]
[1760570141208,2.51055385,3983.2,3982.6,0.4311]
[1760570141409,0.6336,3983.4,3982.6,0.4311]
[1760570141816,2.51071377,3983.0,3982.6,0.4311]
[1760570142255,2.51073356,3982.9,3982.6,0.4311]
[1760570142644,0.1248,3982.6,3982.3,0.4311]
[1760570142936,2.51069401,3983.0,3982.4,0.4311]
[1760570143143,2.51073464,3982.9,3982.4,0.4311]
[1760570143303,0.1248,3982.4,3982.0,2.72794031]
[1760570143508,0.4525005,3983.4,3982.3,0.4311]
[1760570143509,0.6336,3983.3,3982.3,0.4311]
[1760570143728,2.3616,3983.3,3982.3,0.4311]
[1760570143943,2.51068469,3983.0,3982.3,0.4311]
[1760570144145,0.1248,3982.3,3982.0,0.2167]
[1760570144320,1.728,3982.9,3981.1,0.002]
[1760570144646,0.1248,3981.8,3981.6,2.94461168]
[1760570144940,2.51106728,3982.4,3981.7,0.4311]
[1760570145140,1.11582,3982.8,3981.7,0.4311]
[1760570145141,0.48222,3982.8,3982.3,0.2167]
[1760570145463,2.5108609,3982.7,3982.4,0.4311]
[1760570145754,2.5108609,3982.7,3982.3,0.2167]
[1760570145755,0.6336,3983.3,3982.3,0.2167]
[1760570145904,1.827,3983.4,3981.6,0.002]
[1760570145905,0.1248,3982.3,3981.6,0.002]
[1760570146108,2.51118413,3982.2,3981.6,0.002]
[1760570146418,2.51109797,3982.4,3981.6,0.002]
[1760570146622,0.6336,3983.0,3981.7,2.94254606]
[1760570146944,2.51106548,3982.4,3981.7,2.94254606]
[1760570147252,2.51112969,3982.3,3981.7,0.4311]
[1760570148038,0.6336,3982.8,3981.7,0.4311]
[1760570148207,0.1248,3981.7,3981.6,0.002]
[1760570148408,0.1248,3981.7,3981.6,2.51355314]
[1760570148637,0.6336,3983.1,3981.6,0.52870014]
[1760570148836,0.1248,3981.7,3981.6,2.51355314]
[1760570149471,0.1248,3981.7,3981.6,2.94465314]
[1760570150056,0.1248,3981.7,3981.6,0.002]
[1760570158802,0.1248,3981.7,3981.6,0.002]
[1760570160705,0.1248,3981.7,3981.6,2.51355314]
[1760570161002,0.1786,3982.7,3981.6,0.4597]
[1760570161202,2.51110347,3982.4,3981.6,0.4597]
[1760570161397,2.51110347,3982.4,3981.7,2.51144816]
[1760570161794,2.51111861,3982.3,3981.7,2.51144816]
[1760570162100,2.51107255,3982.4,3981.7,2.51144816]
[1760570162498,9.82551785,3983.5,3981.6,0.4597]
[1760570162703,1.728,3982.8,3982.3,0.2235]
[1760570162899,1.728,3982.6,3982.3,0.2235]
[1760570163089,2.15187794,3982.7,3982.3,0.2235]
[1760570163291,1.9074,3982.9,3982.3,3.19228931]
[1760570164088,2.69014329,3982.9,3982.3,3.19228931]
[1760570164289,2.69014329,3982.9,3982.3,0.6812]
[1760570164697,0.0998,3983.7,3982.3,0.6812]
[1760570164898,1.8278,3983.7,3982.4,2.51100866]
[1760570165202,0.64026662,3983.5,3982.4,2.51100866]
[1760570165391,1.728,3982.9,3982.3,3.19229077]
[1760570167526,4.23873348,3982.9,3982.3,3.19229077]
[1760570167725,4.23873348,3982.9,3982.3,0.6812]
[1760570168125,0.45256662,3983.5,3982.4,0.48281048]
[1760570168427,2.51027815,3983.7,3983.0,2.51065394]
[1760570168603,0.50203853,3983.7,3983.3,2.51042138]
[1760570168799,2.51022495,3983.8,3983.1,0.2235]
[1760570169116,2.51013687,3983.9,3983.2,2.51054428]
[1760570169312,1.728,3983.7,3983.2,2.51054428]
[1760570169494,2.5101256,3983.9,3983.3,2.51047802]
[1760570169995,0.1248,3983.3,3983.2,2.51053179]
[1760570170201,2.5101256,3983.9,3983.2,2.96823179]
[1760570170725,2.51016617,3983.8,3983.2,0.4577]
[1760570170940,0.6336,3984.0,3982.4,0.1248]
[1760570171137,2.5109147,3982.7,3982.0,2.73475013]
[1760570171341,2.68865529,3982.8,3982.1,2.51119266]
[1760570171521,2.51087513,3982.7,3982.0,2.73479791]
[1760570171844,2.68860957,3982.8,3982.1,2.51122437]
[1760570172008,2.51069648,3983.0,3982.3,2.51108907]
[1760570172207,0.2758,3983.4,3982.2,2.51111929]
[1760570172208,1.728,3983.3,3982.2,2.51111929]
[1760570172425,2.51061252,3983.1,3982.4,2.51099917]
[1760570172642,2.51067487,3983.0,3982.4,2.51099917]
[1760570173040,2.51067487,3983.0,3982.3,0.4577]
[1760570173041,2.51067487,3983.0,3982.3,2.968795]
[1760570173743,2.5106517,3983.1,3982.4,2.51103193]
[1760570174250,2.51073338,3982.9,3982.3,0.4577]
[1760570174907,0.099,3983.4,3982.3,0.4577]
[1760570175221,2.51091041,3982.7,3982.0,3.19245928]
[1760570175731,2.51091041,3982.7,3982.1,2.51122697]
[1760570176626,2.68856716,3982.9,3982.0,3.19248689]
[1760570177024,2.68856716,3982.9,3982.3,2.51110922]
[1760570177611,2.51054356,3983.3,3982.4,0.4577]
[1760570177839,2.51065449,3983.1,3982.4,2.9686986]
[1760570178345,1.728,3983.7,3982.9,2.51068577]
[1760570178667,2.51033589,3983.6,3983.0,0.4577]
[1760570178847,2.51035557,3983.5,3983.1,0.2235]
[1760570179048,0.69378021,3983.6,3983.1,0.2235]
[1760570179246,0.1893,3983.9,3982.0,0.2235]
[1760570179448,0.2883,3983.9,3982.0,0.6812]
[1760570179653,1.728,3983.7,3982.1,2.96893778]
[1760570179828,1.728,3983.5,3982.2,2.99392789]
[1760570180156,0.1893,3983.9,3982.3,0.77944279]
[1760570180361,2.51043729,3983.4,3982.4,0.4577]
[1760570180663,2.51079191,3982.9,3982.2,2.51116678]
[1760570180832,2.9396711,3982.9,3982.2,2.51116678]
[1760570181172,2.68859191,3982.9,3982.2,2.51116678]
[1760570181658,0.1248,3982.2,3982.1,2.51123778]
[1760570181856,0.1248,3982.2,3982.1,2.98523778]
[1760570182828,2.51034943,3983.6,3982.2,2.51117472]
[1760570183197,0.1006,3984.6,3983.5,0.2261]
[1760570183474,0.001,3984.8,3983.0,2.51066351]
[1760570183475,2.5102718,3983.7,3983.0,2.51066351]
[1760570183692,0.1875,3983.8,3982.8,2.51074529]
[1760570183832,2.51059482,3983.2,3982.5,2.51094425]
[1760570184031,2.51073696,3982.9,3982.3,0.002]
[1760570184667,2.51073696,3982.9,3982.3,2.51309512]
[1760570185671,0.1762,3982.9,3982.3,2.51309512]
[1760570185965,0.1023,3983.4,3982.5,2.51094855]
[1760570186172,2.51056046,3983.2,3982.5,2.51094855]
[1760570187148,2.51049697,3983.3,3982.6,2.51090845]
[1760570187359,2.51049697,3983.3,3982.6,2.98490845]
[1760570187544,1.728,3983.5,3982.3,0.002]
[1760570187886,1.728,3984.2,3983.2,0.2261]
[1760570188090,2.51015632,3983.9,3983.2,3.21063937]
[1760570188767,2.51015632,3983.9,3983.2,0.7001]
[1760570188972,0.68871578,3983.9,3983.2,0.2261]
[1760570189155,2.51017248,3983.8,3983.2,2.73662323]
[1760570189665,2.51017248,3983.8,3983.2,0.2261]
[1760570190047,2.6952272,3983.9,3983.2,0.2261]
[1760570190246,2.6952272,3983.9,3983.2,2.73660307]
[1760570191058,2.51021705,3983.8,3983.2,0.2261]
[1760570191259,0.1851,3983.9,3983.2,0.2261]
[1760570191464,2.51016617,3983.8,3983.2,0.2261]
[1760570191964,0.1851,3983.9,3983.2,0.2261]
[1760570192367,2.69521808,3983.9,3983.2,2.73662038]
[1760570192551,0.1851,3983.9,3983.3,2.51047801]
[1760570192747,0.1055,3984.1,3983.2,2.73664078]
[1760570192748,2.50998507,3984.1,3983.2,2.73664078]
[1760570193078,2.51004557,3984.0,3983.3,0.474]
[1760570193264,2.51004557,3984.0,3983.3,2.98443157]
[1760570193466,0.1248,3983.3,3983.2,0.2261]
[1760570193685,0.1248,3983.3,3983.0,2.51062886]
[1760570193885,0.1248,3983.1,3983.0,2.51062886]
[1760570195148,0.1248,3983.1,3983.0,2.98462886]
[1760570196483,0.1248,3983.1,3983.0,3.55678026]
[1760570200070,0.1248,3983.1,3983.0,3.08278026]
[1760570200276,0.1248,3983.1,3983.0,3.55678026]
[1760570200851,0.1248,3983.1,3983.0,3.58188696]
[1760570201061,1.729,3984.4,3983.8,2.5101365]
[1760570201293,0.42387814,3984.3,3984.1,2.50992285]
[1760570201493,0.001,3984.4,3984.0,2.51004016]
[1760570201494,0.1248,3984.1,3984.0,2.51004016]
[1760570201689,0.001,3984.4,3984.1,2.50993387]
[1760570202420,0.1248,3984.1,3982.9,0.2261]
[1760570202715,0.001,3984.4,3983.3,2.51047249]
[1760570202716,2.63491717,3983.9,3983.3,2.51047249]
[1760570202918,2.63491717,3983.9,3982.9,0.2261]
[1760570202919,0.1907,3983.8,3983.4,2.51040432]
[1760570203703,0.1248,3983.4,3983.1,0.474]
[1760570203907,0.001,3984.4,3983.4,2.51036407]
[1760570204082,0.001,3984.4,3984.0,2.50999945]
[1760570204278,0.001,3984.4,3984.1,2.50996811]
[1760570204783,0.1248,3984.1,3984.0,2.51002653]
[1760570204985,0.001,3984.4,3984.0,2.51002653]
[1760570205182,0.1248,3984.0,3983.6,2.51023738]
[1760570205507,0.1248,3984.0,3983.8,2.51016515]
[1760570206004,0.1248,3984.0,3983.9,2.51010316]
[1760570207191,0.1248,3984.0,3983.8,2.98415974]
[1760570207386,0.1248,3984.0,3983.8,2.51015974]
[1760570207608,0.1248,3984.0,3983.9,2.51010316]
[1760570207814,0.1248,3984.0,3983.8,2.51014546]
[1760570208515,0.1248,3984.0,3983.9,2.51010316]
[1760570209925,0.1248,3984.0,3983.8,2.51014964]
[1760570210225,0.1248,3984.0,3983.9,2.51010316]
[1760570210929,0.1248,3984.0,3983.2,0.1248]
[1760570211229,2.8007129,3983.9,3983.3,2.51046803]
[1760570211739,0.2906,3983.9,3983.3,2.51046803]
[1760570211934,2.8007065,3983.9,3983.2,2.51052554]
[1760570212226,2.51017183,3983.8,3983.2,2.51052554]
[1760570212725,0.82166899,3983.9,3983.1,2.51057385]
[1760570212726,0.1248,3983.2,3983.1,2.51057385]
[1760570212918,0.1248,3983.2,3983.1,2.96977385]
[1760570213700,0.1248,3983.2,3983.1,2.99487992]
[1760570214136,0.001,3984.4,3983.9,2.51006208]
[1760570214301,0.1248,3983.9,3983.6,2.51024411]
[1760570214643,0.1248,3983.9,3983.8,2.51016617]
[1760570215127,0.1248,3983.9,3983.8,2.98476617]
[1760570216640,0.001,3984.4,3984.2,2.50990691]
[1760570217642,0.001,3984.4,3984.3,2.50985116]
[1760570217944,0.001,3984.4,3984.3,3.20265116]
[1760570218239,0.001,3984.4,3984.3,4.93065116]
[1760570219142,0.001,3984.4,3984.3,5.56425116]
[1760570221544,0.001,3984.4,3984.3,4.45605116]
[1760570221710,0.001,3984.4,3984.3,4.23785116]
[1760570222241,0.001,3984.4,3984.3,4.93444919]
[1760570222418,0.001,3984.4,3984.3,3.68104919]
[1760570222624,0.001,3984.4,3984.3,2.50985116]
[1760570223118,0.001,3984.4,3984.3,2.98445116]
[1760570223319,0.001,3984.4,3984.3,3.00954967]
[1760570223851,0.001,3984.4,3984.3,2.98445116]
[1760570224163,0.001,3984.4,3984.3,2.50985116]
[1760570224362,0.001,3984.4,3984.3,3.53112919]
[1760570224933,0.001,3984.4,3984.3,5.25912919]
[1760570225535,0.001,3984.4,3983.4,2.51040478]
[1760570225743,0.1,3984.4,3984.0,2.51002501]
[1760570226070,0.1,3984.4,3984.1,2.50992595]
[1760570226268,0.1,3984.4,3983.3,0.25105095]
[1760570226269,0.099,3984.3,3983.3,0.25105095]
[1760570226444,0.099,3984.3,3983.4,0.34998509]
[1760570226644,0.1248,3983.4,3983.3,2.51048125]
[1760570227062,0.1248,3983.4,3983.3,4.23848125]
[1760570227238,0.1248,3983.4,3983.3,2.51048125]
[1760570227434,0.1248,3983.4,3983.3,3.01018606]
[1760570227646,0.001,3984.4,3984.1,2.50996779]
[1760570227850,0.001,3984.4,3983.8,2.51011016]
[1760570228051,0.001,3984.4,3983.4,2.51041823]
[1760570228249,2.50992905,3984.2,3983.4,2.51037431]
[1760570228456,0.187,3983.5,3983.1,2.51254635]
[1760570228653,0.1248,3983.2,3983.1,2.51259566]
[1760570228856,0.1248,3983.2,3983.1,0.002]
[1760570229049,0.1248,3983.2,3983.1,2.51260731]
[1760570230788,0.1248,3983.2,3983.1,1.19733395]
[1760570231104,0.1248,3983.7,3983.1,1.19733395]
[1760570231395,0.1248,3983.7,3983.6,2.51029219]
[1760570232890,0.1248,3983.7,3983.6,6.86489219]
[1760570233591,0.001,3984.4,3984.3,2.50985116]
[1760570234088,0.1009,3984.4,3983.7,3.88]
[1760570234481,0.1887,3983.8,3983.7,6.39018878]
[1760570235589,0.26206266,3984.4,3983.3,1.728]
[1760570235788,0.001,3984.4,3984.0,2.51000169]
[1760570236489,0.001,3984.4,3983.9,0.02510103]
[1760570236685,0.1248,3984.0,3983.9,2.51010316]
[1760570236876,0.1248,3984.0,3983.9,3.41261139]
[1760570237280,0.1248,3984.0,3983.9,2.51010316]
[1760570237591,0.1248,3984.0,3983.6,3.88]
[1760570237789,0.1248,3983.7,3983.6,3.88]
[1760570237993,0.1248,3983.7,3983.6,6.39024919]
[1760570239283,0.001,3984.4,3984.3,2.50985116]
[1760570239569,0.1861,3983.7,3983.6,3.88]
[1760570239774,0.1861,3983.7,3983.6,6.39029219]
[1760570241589,0.001,3984.4,3983.7,2.51022918]
[1760570241796,0.001,3984.4,3983.7,6.39022918]
[1760570242194,0.001,3984.4,3983.9,2.51005524]
[1760570242506,0.001,3984.4,3984.0,2.51002938]
[1760570242711,0.001,3984.4,3983.7,3.88]
[1760570242913,0.001,3984.4,3984.1,2.50996511]
[1760570243289,0.001,3984.4,3984.3,2.50985116]
[1760570243479,0.001,3984.4,3984.3,2.53494967]
[1760570243679,0.001,3984.4,3984.3,6.85805116]
[1760570244115,0.001,3984.4,3984.3,3.88]
[1760570244513,0.001,3984.4,3984.3,6.38985116]
[1760570244818,0.001,3984.4,3984.3,3.89132307]
[1760570245581,0.001,3984.4,3984.3,3.91642158]
[1760570245780,0.001,3984.4,3984.3,3.89132307]
[1760570246622,0.001,3984.4,3984.3,7.79642158]
[1760570246790,0.001,3984.4,3984.3,7.77132307]
[1760570247809,0.001,3984.4,3984.3,10.32432307]
[1760570249339,2.50652872,3989.6,3985.1,2.645]
[1760570249496,0.1248,3987.3,3986.7,0.1248]
[1760570249687,0.1248,3987.3,3987.2,2.50802568]
[1760570250200,0.1248,3987.3,3986.8,0.2329]
[1760570250391,0.2746,3987.9,3987.3,2.50792903]
[1760570250921,0.29662731,3987.8,3987.3,2.50792903]
[1760570251124,0.1248,3987.3,3986.4,0.593]
[1760570251329,0.1774,3989.0,3987.5,0.1248]
[1760570251499,0.0998,3988.8,3987.2,0.4682]
[1760570251705,0.1248,3987.9,3987.3,2.50796278]
[1760570251901,0.1248,3987.9,3987.8,2.50764832]
[1760570252315,0.1774,3989.0,3988.1,2.50744285]
[1760570252625,2.68430957,3989.0,3987.9,2.50752531]
[1760570252835,0.0998,3988.9,3988.2,2.50739545]
[1760570253733,2.5070825,3988.7,3987.7,2.50770319]
[1760570253894,0.0998,3988.6,3987.8,2.50764369]
[1760570254095,0.60120408,3988.6,3987.8,2.50764369]
[1760570254300,0.60120408,3988.6,3987.8,2.50763726]
[1760570254501,0.60120408,3988.6,3987.2,0.4682]
[1760570254703,2.60702623,3988.5,3987.4,2.50787854]
[1760570254900,2.60707108,3988.4,3987.2,2.50798189]
[1760570255156,1.2145056,3994.0,3987.9,9.64473132]
[1760570255306,0.001,3988.6,3988.5,4.23520822]
[1760570255505,0.001,3988.6,3988.5,4.70340822]
[1760570255724,0.001,3988.6,3988.5,5.44776615]
[1760570256351,0.001,3988.6,3988.5,6.08136615]
[1760570256661,0.001,3988.6,3988.5,7.37136615]
[1760570259211,0.001,3988.6,3988.5,6.73776615]
[1760570260212,0.001,3988.6,3988.5,5.44776615]
[1760570260654,0.001,3988.6,3988.5,2.50720822]
[1760570262684,0.001,3988.6,3988.5,3.0004803]
[1760570263060,0.001,3988.6,3988.5,2.50720822]
[1760570263890,0.001,3988.6,3988.0,2.97566821]
[1760570263891,0.001,3988.6,3987.7,0.2329]
[1760570264093,0.1007,3988.5,3987.2,0.2329]
[1760570264294,0.001,3988.6,3986.4,12.15322058]
[1760570264295,0.001,3988.6,3986.4,0.75365428]
[1760570264599,0.001,3988.6,3987.0,2.50810536]
[1760570264600,2.50746014,3988.1,3987.0,2.50810536]
[1760570264907,2.60821549,3988.1,3986.6,0.2329]
[1760570265219,2.50753851,3988.0,3987.2,2.50798857]
[1760570265429,0.2823,3987.9,3987.2,2.50799038]
[1760570265906,0.2823,3987.9,3987.3,2.50794266]
[1760570266407,0.2823,3987.9,3987.3,2.50795871]
[1760570266780,0.2823,3987.9,3987.2,2.50801359]
[1760570267091,0.001,3988.6,3987.2,0.25080136]
[1760570267291,0.001,3988.6,3987.5,0.6336]
[1760570267631,0.001,3988.6,3988.5,2.50720822]
[1760570267847,0.001,3988.6,3988.5,2.5322803]
[1760570267995,0.001,3988.6,3988.5,2.97540822]
[1760570268623,0.001,3988.6,3988.5,3.0004803]
[1760570268796,0.001,3988.6,3988.5,3.57455089]
[1760570269615,0.001,3988.6,3988.5,3.08127881]
[1760570270127,0.001,3988.6,3988.5,2.50720822]
[1760570275527,0.001,3988.6,3987.3,0.4418]
[1760570275734,0.1015,3988.5,3986.9,0.4438]
[1760570276052,0.1248,3987.6,3986.9,0.5686]
[1760570276328,0.1248,3987.6,3987.5,2.50783699]
[1760570276530,0.1248,3987.6,3986.9,0.1268]
[1760570276834,0.1843,3987.9,3987.5,2.50781064]
[1760570277131,0.1023,3987.8,3987.5,2.50781064]
[1760570277335,0.1248,3987.5,3987.4,2.50788522]
[1760570278234,0.1827,3988.9,3987.5,2.50783699]
[1760570278535,0.1248,3988.4,3988.3,2.50733395]
[1760570279344,0.1248,3988.4,3988.0,2.50746099]
[1760570279500,0.1032,3988.3,3987.2,0.1248]
[1760570279705,0.1032,3988.3,3987.2,2.49151]
[1760570280033,0.1032,3988.3,3987.9,2.50756983]
[1760570280256,0.1032,3988.3,3987.8,2.50763984]
[1760570280463,0.1248,3987.7,3987.6,2.50772885]
[1760570280612,0.1248,3987.7,3987.6,2.50777409]
[1760570280814,0.1248,3987.7,3987.6,2.45423209]
[1760570281515,0.1248,3987.7,3987.0,2.50815149]
[1760570281516,0.1248,3987.7,3987.3,2.50791575]
[1760570281711,0.1248,3987.3,3987.0,2.50815149]
[1760570281928,0.1248,3987.3,3987.2,2.73532568]
[1760570283751,0.1248,3987.3,3987.2,6.61532568]
[1760570284045,0.1248,3987.3,3987.2,6.38802568]
[1760570285154,0.1248,3987.3,3986.9,0.002]
[1760570285324,0.1248,3987.0,3986.9,0.002]
[1760570285652,0.1248,3987.0,3986.9,2.5102144]
[1760570286154,0.099,3987.7,3986.9,0.002]